Cogmind - Beta 16 @@@ ROGUE MODE // 2025.12.21 @ 18:46:16 Player: Oneirical Result: Destroyed by P-80 Master with Gamma Rifle Performance ------------- Evolutions (7) 3500 Regions Visited (16) 3200 Robots Destroyed (74) 370 Value Destroyed (2909) 2909 Prototype IDs (30) 600 Alien Tech Used (0) 0 Bonus (1154) 1154 TOTAL SCORE: 11733 Bonus ------- Follower Combat Kills 399 Entered DSFs 500 Aligned with FarCom 300 Friendly Fire -45 Cogmind --------- Core Integrity 0/1300 Matter 151/300 Energy 99/100 System Corruption 40% Temperature Cool (0) Movement Core (50) Location -3/Research Parts ------- > --- POWER (2) -------- (None) > --- PROPULSION (7) --- (None) > --- UTILITY (9) ------ (None) > --- WEAPON (3) ------- (None) > --- INVENTORY (5) ---- Improved Treads Advanced Remote Datajack Peak State ------------ > --- POWER ------------ Light Angular Momentum Engine > --- PROPULSION ------- Antigrav System Linear Gravjet Linear Gravjet Improved Antigrav System Improved Antigrav System Improved Antigrav System > --- UTILITY ---------- Improved Matter Compressor Advanced Weight Redist. System Advanced Sensor Array Advanced Signal Interpreter Core Analyzer Nanoactuators Graphene Brace Advanced Hacking Suite Improved System Shield > --- WEAPON ----------- Railgun Axe Molecular Scythe > --- INVENTORY -------- Hybrid Fission Core Antigrav System Linear Gravjet Deploy-a-Sentry Deploy-a-Sentry [Rating: 114] Favorites ----------- Power Makeshift Power Source Engine Makeshift Power Source Power Core Hybrid Fission Core Reactor Light Antimatter Reactor Propulsion Light Treads Treads Light Treads Leg Aluminum Leg Wheel Wheel Hover Unit Linear Gravjet Flight Unit Nuclear Pulse Thruster Utility Large Storage Unit Device Improved Heat Sink Storage Large Storage Unit Processor Melee Analysis Suite Hackware Advanced Hacking Suite Protection Improved Medium Armor Plating Weapon Longsword +1 Energy Gun Wave Gun Energy Cannon Light EM Pulse Cannon Ballistic Gun Railgun Launcher Grenade Launcher Special Weapon Mining Laser Impact Weapon Great Maul Slashing Weapon Longsword +1 Build | -11 -10 -10 -9 -9 -9 -8 -8 -7 -7 -7 -6 -6 -5 -4 -4 -3 ------- Run | Yrd Mat Min Mat Min Exi Min Mat Fac Low Low Fac DSF Fac Fac Ext Res Slots Evolved 14 | . . . 2 . . . 2 2 . . 2 . 2 2 . 2 Power 1 | . . . . . . . . . . . . . . . . 1 Propulsion 5 | . . . 1 . . . . 1 . . 1 . . 1 . 1 Utility 7 | . . . 1 . . . 1 1 . . 1 . 2 1 . . Weapon 1 | . . . . . . . 1 . . . . . . . . . Parts Attached 121 | 6 . 3 8 1 3 3 8 4 3 . 2 9 10 20 16 25 Power 12 | 1 . . 1 . . 1 . . 1 . . 1 2 . 1 4 Engine 5 | 1 . . 1 . . 1 . . 1 . . . 1 . . . Core 2 | . . . . . . . . . . . . 1 1 . . . Reactor 5 | . . . . . . . . . . . . . . . 1 4 Propulsion 45 | 2 . . 4 . . . 3 3 2 . 1 4 5 7 7 7 Treads 25 | 2 . . 3 . . . 3 . 1 . . 4 . . 6 6 Leg 4 | . . . . . . . . 3 1 . . . . . . . Wheel 4 | . . . 1 . . . . . . . 1 . . . 1 1 Hover 9 | . . . . . . . . . . . . . 2 7 . . Flight 3 | . . . . . . . . . . . . . 3 . . . Utility 35 | 1 . 1 2 . 1 1 2 1 . . 1 4 3 10 4 4 Device 16 | . . 1 1 . . 1 . 1 . . . 3 2 4 1 2 Storage 4 | 1 . . . . 1 . 1 . . . . . . 1 . . Processor 9 | . . . 1 . . . 1 . . . . . 1 3 1 2 Hackware 2 | . . . . . . . . . . . . . . 2 . . Protection 4 | . . . . . . . . . . . 1 1 . . 2 . Artifact . | . . . . . . . . . . . . . . . . . Weapon 29 | 2 . 2 1 1 2 1 3 . . . . . . 3 4 10 Energy Gun 13 | 2 . 1 . . . . 1 . . . . . . . 2 7 Energy Cannon 2 | . . . . 1 1 . . . . . . . . . . . Ballistic Gun 3 | . . . . . . . . . . . . . . 1 1 1 Ballistic Cannon . | . . . . . . . . . . . . . . . . . Launcher 2 | . . 1 . . . . . . . . . . . 1 . . Special Weapon 2 | . . . 1 . . . . . . . . . . . . 1 Impact Weapon 2 | . . . . . . 1 1 . . . . . . . . . Slashing Weapon 5 | . . . . . 1 . 1 . . . . . . 1 1 1 Piercing Weapon . | . . . . . . . . . . . . . . . . . Special Melee Weapon . | . . . . . . . . . . . . . . . . . Unidentified Prototypes 6 | . . . . . 1 . 1 . . . . . 1 3 . . Parts Lost 65 | . . 3 1 . . 1 1 . 3 . . 2 12 . 21 21 Power 7 | . . 1 . . . . . . 1 . . . 1 . 1 3 Propulsion 27 | . . 1 . . . 1 . . 2 . . 1 5 . 11 6 Utility 14 | . . . . . . . 1 . . . . 1 4 . 6 2 Weapon 17 | . . 1 1 . . . . . . . . . 2 . 3 10 Highest Loss Streak 18 | . . 1 1 . . 1 1 . 3 . . 1 10 . 10 18 To Critical Strikes . | . . . . . . . . . . . . . . . . . Average Backups 7 | . . 3 5 7 8 8 10 10 11 11 11 10 9 2 2 3 Power . | . . . . . . . . . . . . . . 1 . . Propulsion . | . . . 1 1 1 . . 1 1 1 . . . 1 . 1 Utility 1 | . . 1 1 2 3 2 1 1 1 1 1 1 1 . . . Weapon 5 | . . 2 3 4 4 5 7 8 9 9 9 8 7 . 1 2 Tool/Special . | . . . . . . . . . . . . . . . . . Unused Backups 12 | . . . . 1 1 . . 3 . . . 1 5 . . 1 Power . | . . . . . . . . . . . . . . . . . Propulsion . | . . . . . . . . . . . . . . . . . Utility 2 | . . . . . 1 . . . . . . . 1 . . . Weapon 9 | . . . . 1 . . . 3 . . . 1 4 . . . Tool/Special 1 | . . . . . . . . . . . . . . . . 1 Average Slot Usage (%) 86 | . 85 77 86 98 97 94 89 94 93 100 94 99 88 84 87 21 Engine 6 | . 14 4 5 11 11 11 9 7 6 7 6 . . 5 . . Treads 19 | . 28 26 20 22 22 29 26 15 12 23 20 28 23 . 13 6 Leg 2 | . . . . . . . . 12 11 7 6 1 . . . . Wheel 3 | . . . 10 11 11 . . . . . 2 1 . . 3 . Hover 1 | . . . . . . . . . . . . . . 27 6 . Device 13 | . . 6 11 11 11 19 13 12 15 15 13 16 26 23 11 2 Storage 9 | . 14 14 11 11 11 11 13 15 15 15 13 9 4 2 5 . Processor 6 | . . . 7 11 11 2 3 7 7 7 6 6 5 7 13 2 Protection 1 | . . . . . . . . . . . 5 6 3 . 5 . Energy Gun 2 | . 28 20 7 . . . . . . . . . . . 7 3 Energy Cannon 2 | . . . . 9 10 3 . . . . . . . . . . Launcher 2 | . . 3 11 11 8 . . . . . . . . 2 . . Impact Weapon 3 | . . . . . . 7 8 7 7 7 6 6 4 . . . Slashing Weapon 6 | . . . . . . 7 13 15 15 15 13 13 10 5 1 . Peak Build Rating 114 | 6 6 7 12 13 33 37 48 43 46 44 49 72 84 114 109 99 Average Rating 41 | 4 6 6 9 12 17 29 33 40 42 44 47 62 73 92 88 30 On Entrance 32 | . 6 6 6 11 13 33 28 37 43 44 44 49 72 56 109 1 Avg Prop Armor Cover (%) 8 | . . . 4 3 3 . . 11 10 5 11 26 12 11 13 2 Naked Turns 101 | . . . . . . . . . . . . . . . 5 96 Heaviest Build 54 | 12 12 12 18 20 50 50 54 39 44 44 52 52 52 36 48 44 Greatest Support 180 | 40 40 40 43 43 43 63 63 60 60 60 60 140 140 60 115 180 Greatest Overweight (x) 8 | . . . 1 . 1 1 . 3 2 . 3 3 8 . 2 4 Average Overweight (x) . | . . . . . . . . . . . . . . . . . Largest Inventory Capacity 15 | 8 8 8 8 8 15 15 15 15 15 15 15 15 15 5 5 5 Average Capacity 11 | 6 8 8 8 8 13 15 15 15 15 15 15 15 14 5 5 5 Most Carried 15 | . 3 4 8 8 13 14 15 15 15 15 15 15 15 5 5 5 Average Carried 10 | . . 3 5 7 9 12 14 14 15 15 14 14 13 4 3 3 Final Capacity 15 | 8 8 8 8 8 15 15 15 15 15 15 15 15 5 5 5 5 Final Carried 15 | . 3 4 8 8 13 12 15 15 15 15 15 15 4 5 3 2 Class Distribution -------------------- 39% | Mutant 22% | Gladiator 14% | Scavenger-Gladiator 8% | Assassin 7% | Scavenger-Tank Dominant Class ---------------- Mutant | -10/Materials Mutant | -10/Mines Mutant | -9/Materials Mutant | -9/Mines Mutant | -9/Exiles Scavenger-Assassin | -8/Mines Assassin | -8/Materials Scavenger-Gladiator | -7/Factory Gladiator | -7/Lower Caves Gladiator | -7/Lower Caves Gladiator | -6/Factory Gladiator | -6/DSF Gladiator | -5/Factory Mutant | -4/Factory Scavenger-Tank | -4/Extension Mutant | -3/Research Resources | -11 -10 -10 -9 -9 -9 -8 -8 -7 -7 -7 -6 -6 -5 -4 -4 -3 ----------- Run | Yrd Mat Min Mat Min Exi Min Mat Fac Low Low Fac DSF Fac Fac Ext Res Matter Collected 2033 | 207 53 35 67 278 . 75 90 60 20 20 . 100 115 150 608 155 Remotely . | . . . . . . . . . . . . . . . . . Salvage Created 3407 | . 80 242 153 . . 137 415 164 167 . . 256 525 147 859 262 Parts 187 | . 5 19 15 . . 2 23 8 1 . . 17 37 6 25 29 Haulers Intercepted 3 | . . . . . . . 2 . . . . . . 1 . . Recyclers Shooed 2 | . . 1 1 . . . . . . . . . . . . . Parts Field Recycled . | . . . . . . . . . . . . . . . . . Retrieved Matter . | . . . . . . . . . . . . . . . . . Parts Self-Destructed 2 | . . . . . . . . . 2 . . . . . . . Prevented . | . . . . . . . . . . . . . . . . . Parts Restored . | . . . . . . . . . . . . . . . . . Kills | -11 -10 -10 -9 -9 -9 -8 -8 -7 -7 -7 -6 -6 -5 -4 -4 -3 ------- Run | Yrd Mat Min Mat Min Exi Min Mat Fac Low Low Fac DSF Fac Fac Ext Res Combat Hostiles Destroyed 59 | . 1 9 6 . . 2 7 3 3 . . 4 11 . 9 4 Melee 29 | . . . . . . . 4 3 2 . . 4 11 . 5 . Guns 12 | . 1 4 . . . . . . . . . . . . 3 4 AOE 15 | . . 4 6 . . 2 3 . . . . . . . . . Classes Destroyed 14 | . 2 1 2 . . 1 2 . . . . 1 2 . 2 1 Worker 3 | . . . . . . . 1 . . . . . 1 1 . . Tunneler 2 | . . . 1 . . . . . . . . . 1 . . . Hauler 3 | . . . . . . . 2 . . . . . . 1 . . Recycler 1 | . . . . . . . . . . . . . . . 1 . Operator 1 | . . . . . . . . . . . . . . . 1 . Watcher 4 | . 1 . 1 . . . 1 . . . . . . . 1 . Swarmer 14 | . . 3 3 . . . 3 . . . . . 5 . . . Grunt 26 | . 1 6 2 . . 2 . 2 3 . . 3 3 . 4 . Sentry 11 | . . . 1 . . . 4 1 . . . . . . 5 . Hunter 2 | . . . . . . . . . . . . . 2 . . . Programmer 4 | . . . . . . . . . . . . . . . . 4 Heavy 1 | . . . . . . . . . . . . 1 . . . . Behemoth 1 | . . . . . . . . . . . . . 1 . . . Zionite 1 | . . . . . . 1 . . . . . . . . . . Best Kill Streak 5 | . 2 3 4 . . 2 4 1 2 . . 3 5 1 2 2 Combat Bots Only 5 | . 1 3 3 . . 2 3 1 2 . . 3 5 . 2 2 Max Kills in Single Turn 4 | . 1 2 2 . . 2 4 1 1 . . 1 1 1 1 1 Gunslinging . | . . . . . . . . . . . . . . . . . Exploded 3 | . . 2 1 . . 2 3 . . . . . . . . . Melee 1 | . . . . . . . 1 1 1 . . 1 1 . 1 . Uniques/NPCs Destroyed . | . . . . . . . . . . . . . . . . . Combat | -11 -10 -10 -9 -9 -9 -8 -8 -7 -7 -7 -6 -6 -5 -4 -4 -3 -------- Run | Yrd Mat Min Mat Min Exi Min Mat Fac Low Low Fac DSF Fac Fac Ext Res Hostile Shots Fired 743 | . 5 49 26 . . 5 42 54 36 . . 29 81 . 193 223 Missed 194 | . . 16 6 . . 1 17 13 11 . . 8 14 . 50 58 Hits 549 | . 5 33 20 . . 4 25 41 25 . . 21 67 . 143 165 Projectile 549 | . 5 33 20 . . 4 25 41 25 . . 21 67 . 143 165 AOE 1 | . . . . . . . . . . . . . . . . 1 Critical Strikes 31 | . . . . . . 2 1 . 2 . . 2 1 . 10 13 Actively Blocked 11 | . . . . . . . . . . . . 1 1 . 9 . Damage Taken 11751 | . 73 456 190 . . 143 341 306 422 . . 595 1837 . 3352 4036 Core 2836 | . . 92 26 . . 56 24 84 95 . . . 279 . 869 1311 Absorbed by Shields . | . . . . . . . . . . . . . . . . . Core Remaining (%) 75 | 100 . 63 . . . 79 95 . . 74 . 100 72 . 24 . Volleys Fired 109 | . 6 33 10 . . 2 1 . . . . . . . 21 36 Largest 3 | . 2 2 2 . . 1 1 . . . . . . . 3 3 Hottest 250 | . 80 95 100 . . 250 250 . . . . . . . 197 183 Shots Fired 207 | . 12 51 15 . . 2 1 . . . . . . . 61 65 Gun 187 | . 12 44 5 . . . . . . . . . . . 61 65 Cannon 3 | . . . . . . 2 1 . . . . . . . . . Launcher 16 | . . 7 9 . . . . . . . . . . . . . Special 1 | . . . 1 . . . . . . . . . . . . . Kinetic 46 | . . . . . . . . . . . . . . . 21 25 Thermal 61 | . . 7 1 . . 2 1 . . . . . . . 40 10 Explosive 16 | . . 7 9 . . . . . . . . . . . . . Electromagnetic 84 | . 12 37 5 . . . . . . . . . . . . 30 Robot Hit Streak 7 | . 3 5 3 . . . 1 . . . . . . . 7 7 Robot Miss Streak 5 | . 1 5 3 . . . 3 . . . . . . . 2 3 Penetration Max 2 | . . . . . . . . . . . . . . . 2 1 Secondary Targets 2 | . . . . . . . . . . . . . . . 1 1 Max Gunslinging Chain 1 | . . . . . . . . . . . . . . . 1 1 Shots Hit Robots 264 | . 8 28 6 . . . 16 13 11 . . 15 45 6 67 49 Core Hits 119 | . 4 14 9 . . 7 10 4 3 . . 7 16 3 27 15 Critical Kills . | . . . . . . . . . . . . . . . . . Critical Parts Destroyed 2 | . . . . . . . . . 1 . . . . . 1 . Critical Strikes 31 | . 1 . . . . . 1 3 3 . . . 9 . 12 2 Burn 5 | . . . . . . . . . . . . . . . 5 . Destroy 1 | . . . . . . . . . . . . . . . 1 . Corrupt 2 | . 1 . . . . . . . . . . . . . . 1 Smash 1 | . . . . . . . . . 1 . . . . . . . Sever 22 | . . . . . . . 1 3 2 . . . 9 . 6 1 Melee Attacks 158 | . . . . . . . 17 13 11 . . 16 50 11 31 9 Impact 6 | . . . . . . . 2 . 1 . . . 3 . . . Slashing 152 | . . . . . . . 15 13 10 . . 16 47 11 31 9 Piercing . | . . . . . . . . . . . . . . . . . Sneak Attacks 9 | . . . . . . . 2 . . . . . 4 2 . 1 Combat Hostiles 2 | . . . . . . . . . . . . . 2 . . . Follow-up Attacks 14 | . . . . . . . 2 2 2 . . 2 6 . . . Damage Inflicted 9937 | . 111 779 463 . . 250 964 605 509 . . 471 2169 308 2100 1208 Guns 2567 | . 111 359 . . . . . . . . . . . . 1125 972 Cannons 83 | . . . . . . 49 34 . . . . . . . . . Explosions 1281 | . . 420 463 . . 201 197 . . . . . . . . . Melee 5996 | . . . . . . . 733 605 509 . . 471 2169 308 971 230 Ramming 10 | . . . . . . . . . . . . . . . 4 6 Kinetic 1019 | . . . . . . . . . . . . . . . 444 575 Thermal 1520 | . . 85 . . . 250 231 . . . . . . . 681 273 Explosive 861 | . . 398 463 . . . . . . . . . . . . . Electromagnetic 531 | . 111 296 . . . . . . . . . . . . . 124 Impact 266 | . . . . . . . 50 . 61 . . . 155 . . . Slashing 5730 | . . . . . . . 683 605 448 . . 471 2014 308 971 230 Piercing . | . . . . . . . . . . . . . . . . . Highest Corruption 40 | . . . . . . . . . . . . . 12 . . 40 Average Corruption 12 | . . . . . . . . . . . . . 6 . . 19 Corruption Purged . | . . . . . . . . . . . . . . . . . Corruption Blocked . | . . . . . . . . . . . . . . . . . Effects 21 | . . . . . . . . . . . . . 9 . . 12 Message Errors 3 | . . . . . . . . . . . . . 2 . . 1 Matter Fused 8 | . . . . . . . . . . . . . 3 . . 5 Energy Discharges 3 | . . . . . . . . . . . . . 2 . . 1 Parts Rejected 2 | . . . . . . . . . . . . . . . . 2 Data Loss (minor) 1 | . . . . . . . . . . . . . 1 . . . Data Loss (major) 1 | . . . . . . . . . . . . . 1 . . . Misfires 1 | . . . . . . . . . . . . . . . . 1 Weapon Failures 2 | . . . . . . . . . . . . . . . . 2 Overload Shots . | . . . . . . . . . . . . . . . . . Overflow Damage 368 | . . 36 12 . . . 53 . 61 . . . 206 . . . Projectiles . | . . . . . . . . . . . . . . . . . Explosions 48 | . . 36 12 . . . . . . . . . . . . . Melee 320 | . . . . . . . 53 . 61 . . . 206 . . . Knockbacks . | . . . . . . . . . . . . . . . . . Impact . | . . . . . . . . . . . . . . . . . Kinetic . | . . . . . . . . . . . . . . . . . Secondary . | . . . . . . . . . . . . . . . . . Self-Inflicted Damage 141 | . . 43 12 . . 20 61 . . . . . . . 2 3 Shots 8 | . . 2 1 . . 1 4 . . . . . . . . . Rammed 4 | . . . . . . . . . . . . . 1 . 2 1 Targets Rammed 4 | . . . . . . . . . . . . . 1 . 2 1 Kicked . | . . . . . . . . . . . . . . . . . Crushed . | . . . . . . . . . . . . . . . . . Highest Temperature 540 | . 135 216 4 . . 540 260 . 1 . . . . 12 312 87 Average Temperature 116 | . 63 102 2 . . 270 144 . 1 . . . . 8 141 39 Received Heat Transfer 1440 | . 45 219 27 . . 72 36 99 234 . . 99 141 . 468 . Effects 7 | . . . . . . 7 . . . . . . . . . . Shutdowns 1 | . . . . . . 1 . . . . . . . . . . Short Circuit 1 | . . . . . . 1 . . . . . . . . . . Damage (major) 4 | . . . . . . 4 . . . . . . . . . . Damage (core) 1 | . . . . . . 1 . . . . . . . . . . Siege Activations . | . . . . . . . . . . . . . . . . . Martial Activations . | . . . . . . . . . . . . . . . . . Shielding Activations . | . . . . . . . . . . . . . . . . . Robots Disrupted . | . . . . . . . . . . . . . . . . . Combat Hostiles . | . . . . . . . . . . . . . . . . . Robots Corrupted 2 | . . 1 . . . . . . 1 . . . . . . . Combat Hostiles 2 | . . 1 . . . . . . 1 . . . . . . . Parts Fried 1 | . 1 . . . . . . . . . . . . . . . Impact Corruptions 2 | . . . . . . . . . 2 . . . . . . . Robots Melted 1 | . . . . . . . 1 . . . . . . . . . Combat Hostiles . | . . . . . . . . . . . . . . . . . Parts Melted 13 | . . . . . . 2 6 . . . . . . . 5 . Heat Transferred 4343 | . . 198 . . . 1360 1120 . . . . . . . 1406 259 Parts Sabotaged . | . . . . . . . . . . . . . . . . . Parts Stolen . | . . . . . . . . . . . . . . . . . Parts Stripped . | . . . . . . . . . . . . . . . . . Power Chain Reactions 1 | . . 1 . . . . . . . . . . . . . . Alert | -11 -10 -10 -9 -9 -9 -8 -8 -7 -7 -7 -6 -6 -5 -4 -4 -3 ------- Run | Yrd Mat Min Mat Min Exi Min Mat Fac Low Low Fac DSF Fac Fac Ext Res Maximum Alert Level . | . . . . . . . . . . . . . . . . . Low Security (%) 100 | 100 100 100 100 100 . 100 100 100 . . 100 100 100 100 100 100 Level 1 . | . . . . . . . . . . . . . . . . . Level 2 . | . . . . . . . . . . . . . . . . . Level 3 . | . . . . . . . . . . . . . . . . . Level 4 . | . . . . . . . . . . . . . . . . . Level 5 . | . . . . . . . . . . . . . . . . . High Security . | . . . . . . . . . . . . . . . . . Max Security . | . . . . . . . . . . . . . . . . . Peak Influence 178 | . 45 158 178 61 . 79 116 45 . . . 80 115 57 64 64 Initial 61 | . . 5 53 61 . . . 11 . . . . 42 50 . . Average 25 | . 19 57 102 13 . 38 26 7 . . . 36 34 28 12 9 Influence Increases 2172 | . 52 298 225 58 . 89 260 95 70 . . 90 397 57 329 152 Destroy 0b10 Robot/C 1360 | . 20 180 120 40 . 60 140 60 60 . . 80 300 . 220 80 Destroy 0b10 Robot/NC 75 | . 5 . 10 . . . 20 . . . . . 15 10 15 . Destroy Leader 284 | . 12 40 22 10 . 10 56 20 10 . . 10 70 2 2 20 Allied During Kill 34 | . . . . 8 . 11 . . . . . . 10 . 5 . Successful Hack 42 | . . . . . . . 8 . . . . . . . 7 27 Select Force Hacks 30 | . . . . . . . 30 . . . . . . . . . Disable Machine 105 | . . 15 30 . . . . . . . . . . 45 15 . Destroy Structure 137 | . . 48 43 . . 8 6 . . . . . 2 . 20 10 Lose Combat Pursuer 105 | . 15 15 . . . . . 15 . . . . . . 45 15 Influence Decreases 2172 | . 37 175 205 190 26 89 234 115 76 . . 10 374 160 329 152 Entered New Map 327 | . . 10 85 97 26 . . 15 3 . . . 38 53 . . Time Decay 1482 | . 37 135 110 93 . 79 204 100 60 . . . 228 107 227 102 Lost Part 321 | . . 30 10 . . 10 10 . 13 . . 10 108 . 80 50 Lost Ally 42 | . . . . . . . 20 . . . . . . . 22 . Squads Dispatched 8 | . . . . . . . 1 1 . . . 1 2 . 1 2 Investigation 4 | . . . . . . . 1 1 . . . . 1 . 1 . Extermination 2 | . . . . . . . . . . . . . 1 . . 1 Reinforcement 2 | . . . . . . . . . . . . 1 . . . 1 Assault . | . . . . . . . . . . . . . . . . . Garrison . | . . . . . . . . . . . . . . . . . Intercept . | . . . . . . . . . . . . . . . . . Searches Triggered . | . . . . . . . . . . . . . . . . . Construction Impeded . | . . . . . . . . . . . . . . . . . Haulers Reinforced . | . . . . . . . . . . . . . . . . . Active Scanning Responses . | . . . . . . . . . . . . . . . . . Cargo Convoy Interrupts . | . . . . . . . . . . . . . . . . . Stealth | -11 -10 -10 -9 -9 -9 -8 -8 -7 -7 -7 -6 -6 -5 -4 -4 -3 --------- Run | Yrd Mat Min Mat Min Exi Min Mat Fac Low Low Fac DSF Fac Fac Ext Res Distress Signals 6 | . 1 . 1 . . . 2 . . . . . . . 2 . Communications Jammed . | . . . . . . . . . . . . . . . . . Distress Signals . | . . . . . . . . . . . . . . . . . Times Spotted 106 | . 3 9 7 2 . 3 16 5 4 . . 4 16 . 28 9 Peak Tracking Total 9 | . 3 3 2 2 . 3 6 3 3 . . 3 5 . 9 4 Tactical Retreats 7 | . 1 1 . . . . . 1 . . . . . . 3 1 Traps | -11 -10 -10 -9 -9 -9 -8 -8 -7 -7 -7 -6 -6 -5 -4 -4 -3 ------- Run | Yrd Mat Min Mat Min Exi Min Mat Fac Low Low Fac DSF Fac Fac Ext Res Traps Triggered 10 | . . . . . . . . 1 . . . . 6 1 2 . Indirectly . | . . . . . . . . . . . . . . . . . Trap Hack Attempts . | . . . . . . . . . . . . . . . . . Triggered . | . . . . . . . . . . . . . . . . . Disarmed . | . . . . . . . . . . . . . . . . . Reprogrammed . | . . . . . . . . . . . . . . . . . Reused . | . . . . . . . . . . . . . . . . . Traps Extracted . | . . . . . . . . . . . . . . . . . Installed . | . . . . . . . . . . . . . . . . . Triggered . | . . . . . . . . . . . . . . . . . Machines | -11 -10 -10 -9 -9 -9 -8 -8 -7 -7 -7 -6 -6 -5 -4 -4 -3 ---------- Run | Yrd Mat Min Mat Min Exi Min Mat Fac Low Low Fac DSF Fac Fac Ext Res Machines Disabled 7 | . . 1 2 . . . . . . . . . . 3 1 . Max in Single Turn 1 | . . 1 1 . . . . . . . . . . 1 1 . Machines Repaired . | . . . . . . . . . . . . . . . . . Machines Dismantled . | . . . . . . . . . . . . . . . . . Machines Sabotaged . | . . . . . . . . . . . . . . . . . Overloaded Fab Kills . | . . . . . . . . . . . . . . . . . Hacking | -11 -10 -10 -9 -9 -9 -8 -8 -7 -7 -7 -6 -6 -5 -4 -4 -3 --------- Run | Yrd Mat Min Mat Min Exi Min Mat Fac Low Low Fac DSF Fac Fac Ext Res Machines Accessed 27 | . 1 . 2 . 4 . 4 2 . . 2 . 2 4 3 3 Terminals 13 | . 1 . 2 . . . 1 . . . 1 . 2 2 3 1 Fabricators 4 | . . . . . . . . 1 . . . . . 1 . 2 Repair Stations 2 | . . . . . . . 1 1 . . . . . . . . Recycling Units 2 | . . . . . . . 1 . . . 1 . . . . . Scanalyzers 1 | . . . . . . . 1 . . . . . . . . . Garrison Access 1 | . . . . . . . . . . . . . . 1 . . Total Hacks 91 | . 2 . 5 . 43 . 13 3 . . 3 . 3 7 8 4 Successful 61 | . 1 . 1 . 43 . 4 1 . . 2 . 2 3 3 1 Failed 30 | . 1 . 4 . . . 9 2 . . 1 . 1 4 5 3 Catastrophic 8 | . 1 . 1 . . . . 1 . . . . 1 2 1 1 Database Lockouts . | . . . . . . . . . . . . . . . . . Manual 5 | . . . . . 1 . 3 . . . . . . . 1 . Terminals 30 | . 2 . 5 . . . 4 . . . 2 . 3 4 8 2 Fabricators 4 | . . . . . . . . 1 . . . . . 1 . 2 Repair Stations 4 | . . . . . . . 2 2 . . . . . . . . Recycling Units 6 | . . . . . . . 5 . . . 1 . . . . . Scanalyzers 2 | . . . . . . . 2 . . . . . . . . . Garrison Access 2 | . . . . . . . . . . . . . . 2 . . Terminal Hacks 54 | . 1 . 1 . 43 . 2 . . . 1 . 2 2 2 . Record 45 | . . . . . 42 . . . . . . . 2 . 1 . Prototype ID Bank 1 | . . . 1 . . . . . . . . . . . . . Open Door 2 | . . . . . . . . . . . . . . 1 1 . Open DSF 1 | . . . . . . . . . . . 1 . . . . . Branch Access Points 1 | . 1 . . . . . . . . . . . . . . . Emergency Access Points 1 | . . . . . . . 1 . . . . . . . . . Alert Level 1 | . . . . . . . . . . . . . . 1 . . Locate Traps 1 | . . . . . . . 1 . . . . . . . . . Proto ID Catalog 1 | . . . . . 1 . . . . . . . . . . . Fabricator Hacks 2 | . . . . . . . . . . . . . . 1 . 1 Build 2 | . . . . . . . . . . . . . . 1 . 1 Repair Station Hacks 2 | . . . . . . . 1 1 . . . . . . . . Scan Component 2 | . . . . . . . 1 1 . . . . . . . . Recycling Unit Hacks 1 | . . . . . . . . . . . 1 . . . . . Report Inventory 1 | . . . . . . . . . . . 1 . . . . . Scanalyzer . | . . . . . . . . . . . . . . . . . Garrison Access Hacks . | . . . . . . . . . . . . . . . . . Unauthorized Hacks 2 | . . . . . . . 1 . . . . . . . 1 . Terminals 1 | . . . . . . . . . . . . . . . 1 . Botnet 1 | . . . . . . . . . . . . . . . 1 . Fabricators . | . . . . . . . . . . . . . . . . . Repair Stations . | . . . . . . . . . . . . . . . . . Recycling Units 1 | . . . . . . . 1 . . . . . . . . . Tunnel 1 | . . . . . . . 1 . . . . . . . . . Scanalyzers . | . . . . . . . . . . . . . . . . . Garrison Access . | . . . . . . . . . . . . . . . . . Data Cores Recovered 1 | . . . . . . . . . . . . . . . 1 . Used . | . . . . . . . . . . . . . . . . . Hacking Detections 20 | . 1 . 2 . . . 4 2 . . 1 . 2 3 2 3 Full Trace Events 1 | . . . . . . . . . . . . . . . 1 . Feedback Events . | . . . . . . . . . . . . . . . . . Feedback Blocked . | . . . . . . . . . . . . . . . . . Robot Schematics Acquired . | . . . . . . . . . . . . . . . . . Robots Built . | . . . . . . . . . . . . . . . . . Authchips . | . . . . . . . . . . . . . . . . . Time . | . . . . . . . . . . . . . . . . . Total Robot Build Rating . | . . . . . . . . . . . . . . . . . Part Schematics Acquired . | . . . . . . . . . . . . . . . . . Parts Built 2 | . . . . . . . . . . . . . . . . 2 Authchips . | . . . . . . . . . . . . . . . . . Time 110 | . . . . . . . . . . . . . . 64 . 46 Total Part Build Rating 18 | . . . . . . . . . . . . . . . . 18 Part Studies Acquired . | . . . . . . . . . . . . . . . . . Parts Repaired . | . . . . . . . . . . . . . . . . . Time . | . . . . . . . . . . . . . . . . . Parts Recycled . | . . . . . . . . . . . . . . . . . Recycled Matter . | . . . . . . . . . . . . . . . . . Retrieved Matter . | . . . . . . . . . . . . . . . . . Retrieved Components . | . . . . . . . . . . . . . . . . . Parts Scanalyzed . | . . . . . . . . . . . . . . . . . Part Schematics Acquired . | . . . . . . . . . . . . . . . . . Parts Damaged . | . . . . . . . . . . . . . . . . . Bothacking | -11 -10 -10 -9 -9 -9 -8 -8 -7 -7 -7 -6 -6 -5 -4 -4 -3 ------------ Run | Yrd Mat Min Mat Min Exi Min Mat Fac Low Low Fac DSF Fac Fac Ext Res Used RIF Installer . | . . . . . . . . . . . . . . . . . Robots Hacked . | . . . . . . . . . . . . . . . . . Non-combat . | . . . . . . . . . . . . . . . . . Combat . | . . . . . . . . . . . . . . . . . Robot Hacks Applied . | . . . . . . . . . . . . . . . . . Relay Couplers Released . | . . . . . . . . . . . . . . . . . Fabnet Peak Effective % . | . . . . . . . . . . . . . . . . . Robots Rewired . | . . . . . . . . . . . . . . . . . Allies Hacked . | . . . . . . . . . . . . . . . . . Hacks Repelled . | . . . . . . . . . . . . . . . . . Allies | -11 -10 -10 -9 -9 -9 -8 -8 -7 -7 -7 -6 -6 -5 -4 -4 -3 -------- Run | Yrd Mat Min Mat Min Exi Min Mat Fac Low Low Fac DSF Fac Fac Ext Res Total Allies 4 | . . . . 3 . . . . . . . . . . 1 . Largest Group 3 | . . . . 3 3 3 3 . . . . . . . 1 . Highest-Rated Group 46 | . . . . 40 40 40 40 . . . . . . . 46 . Highest-Rated Ally 46 | . . . . 16 16 16 16 . . . . . . . 46 . Total Orders . | . . . . . . . . . . . . . . . . . Ally Attacks 69 | . . . . 18 . 7 6 . . . . . 11 . 27 . Total Damage 2266 | . . . . 184 . 41 72 . . . . . 730 . 1239 . Kills 10 | . . . . 2 . 1 . . . . . . 5 . 2 . Allies Corrupted . | . . . . . . . . . . . . . . . . . Allies Melted . | . . . . . . . . . . . . . . . . . Turrets Deployed 3 | . . . . . . . . . . . . . 1 . 2 . Intel | -11 -10 -10 -9 -9 -9 -8 -8 -7 -7 -7 -6 -6 -5 -4 -4 -3 ------- Run | Yrd Mat Min Mat Min Exi Min Mat Fac Low Low Fac DSF Fac Fac Ext Res Active Infowar (turns) 5191 | . . 140 238 522 1057 176 660 369 623 44 136 159 752 245 70 . Sensors 4986 | . . . 173 522 1057 176 660 369 623 44 136 159 752 245 70 . Terrain 205 | . . 140 65 . . . . . . . . . . . . . Robot Analysis Total . | . . . . . . . . . . . . . . . . . Derelict Logs Recovered 2 | . . . . . . . . . 2 . . . . . . . Drone Launches . | . . . . . . . . . . . . . . . . . Drone Recoveries . | . . . . . . . . . . . . . . . . . Exploration | -11 -10 -10 -9 -9 -9 -8 -8 -7 -7 -7 -6 -6 -5 -4 -4 -3 ------------- Run | Yrd Mat Min Mat Min Exi Min Mat Fac Low Low Fac DSF Fac Fac Ext Res Turns Passed 7682 | 63 108 283 238 522 1057 176 1302 574 623 44 136 198 853 245 754 506 Spaces Moved 4059 | 35 55 102 124 316 606 89 382 272 325 27 83 88 394 318 508 335 Core 330 | 2 . . . . . . . . . . . . 9 . 12 307 Treads 2498 | 33 55 102 112 316 606 89 382 205 128 27 58 62 259 . 36 28 Legs 264 | . . . . . . . . 67 197 . . . . . . . Wheels 406 | . . . 12 . . . . . . . 25 26 . . 343 . Hover 480 | . . . . . . . . . . . . . 45 318 117 . Flight 81 | . . . . . . . . . . . . . 81 . . . Fastest Speed 30 | 50 160 160 95 160 160 160 160 163 166 166 145 145 34 30 43 50 Average Speed 139 | 153 160 160 153 160 173 172 162 170 182 166 159 157 129 44 101 87 Slowest Speed 450 | 160 160 160 160 160 240 240 165 330 260 166 166 240 450 52 180 250 Overloaded Moves . | . . . . . . . . . . . . . . . . . Propulsion Burnouts . | . . . . . . . . . . . . . . . . . Robots Hopped . | . . . . . . . . . . . . . . . . . Potential Cave-ins . | . . . . . . . . . . . . . . . . . Cave-ins Triggered 2 | . . . . . . . . . . . . . 2 . . . Exploration Rate (%) 29 | 3 20 31 16 45 90 23 37 9 49 9 4 82 15 7 50 12 Regions Visited 16 Branch Regions 7 Pre-discovered Areas 3 | . . . . . 1 . 1 . 1 . . . . . . . Known Exits Taken 7 | . 1 . 1 1 1 . . . . . 1 . 1 1 . . Unknown Exits Taken 8 | 1 . 1 . . . 1 1 1 1 1 . . . . 1 . Scrap Searched 5 | . . . . 2 . . . . 2 1 . . . . . . Spaces Dug 4 | . . . . . . . . . . . . . 1 . . 3 Terrain Destroyed 143 | . . 59 47 . . 13 5 . . . . . 1 . 14 4 Melee 4 | . . . . . . . . . . . . . 1 . . 3 Projectile 16 | . . . . . . . 1 . . . . . . . 14 1 AOE 123 | . . 59 47 . . 13 4 . . . . . . . . . Terrain Rammed . | . . . . . . . . . . . . . . . . . Walls Destroyed . | . . . . . . . . . . . . . . . . . Machines Disabled . | . . . . . . . . . . . . . . . . . Actions | -11 -10 -10 -9 -9 -9 -8 -8 -7 -7 -7 -6 -6 -5 -4 -4 -3 --------- Run | Yrd Mat Min Mat Min Exi Min Mat Fac Low Low Fac DSF Fac Fac Ext Res Total 5715 | 41 63 169 152 334 616 110 1046 371 342 26 86 134 693 401 665 466 Wait 1171 | 1 . 31 3 13 . 13 629 74 5 . . 15 234 41 64 48 Move 4043 | 34 54 101 123 315 605 88 381 271 324 26 82 87 393 317 507 335 Hop . | . . . . . . . . . . . . . . . . . Pick Up 41 | . 3 1 5 3 4 . 5 4 . . 1 1 5 2 1 6 Fast Attach 79 | 6 . 2 3 . 1 . 4 3 3 . 2 4 6 12 13 20 Attach 26 | . . . 1 1 . 4 3 . . . . 1 3 2 3 8 Detach 11 | . . . . . 2 2 2 . . . . 1 . 2 . 2 Swap 35 | . . 1 5 . 2 1 3 2 1 . . 6 3 8 3 . Drop 41 | . . . 2 2 2 . 5 6 . . 1 6 6 6 4 1 Fire 109 | . 6 33 10 . . 2 1 . . . . . . . 21 36 Melee 139 | . . . . . . . 13 11 9 . . 13 42 11 31 9 Ram 3 | . . . . . . . . . . . . . . . 2 1 Kick . | . . . . . . . . . . . . . . . . . Crush 1 | . . . . . . . . . . . . . 1 . . . Escape Stasis 16 | . . . . . . . . . . . . . . . 16 . Rewire . | . . . . . . . . . . . . . . . . . Trap . | . . . . . . . . . . . . . . . . . Miscellaneous . | . . . . . . . . . . . . . . . . . Route ------- -11/Scrapyard -10/Materials (discovered 2 exits: *Min x2) -10/Mines -9/Materials -9/Mines -9/Exiles (discovered 2 exits: *Min x2) -8/Mines -8/Materials -7/Factory -7/Lower Caves -7/Lower Caves -6/Factory -6/DSF -5/Factory -4/Factory (discovered 2 exits: *Res / *Ext) -4/Extension -3/Research History --------- Turn | Location | Event 13 | -11/Scrapyard | Discovered new exit (range 16) 64 | -11/Scrapyard | Entered Materials 74 | -10/Materials | Identified exit to Mines 172 | -10/Materials | Entered Mines 203 | -10/Mines | Met a Derelict bent on vengeance 336 | -10/Mines | Build established: Mutant 431 | -10/Mines | Discovered new exit (range 15) 455 | -10/Mines | Entered Materials 455 | -9/Materials | Evolved 2 slots: Propulsion x1, Utility x1 657 | -9/Materials | Discovered new exit (range 15) 679 | -9/Materials | Identified exit to Mines 693 | -9/Materials | Entered Mines 957 | -9/Mines | Assisted by bots powering up and referring to "LRC-V3" 1148 | -9/Mines | Deemed a non-threat by the Exiles lab entrance 1148 | -9/Mines | Discovered new exit (range 5) 1153 | -9/Mines | Identified exit to Exiles 1215 | -9/Mines | Entered Exiles 1215 | -9/Exiles | Accompanied by 3 allies 1239 | -9/Exiles | Discovered new exit (range 15) 1260 | -9/Exiles | Identified exit to Mines 1291 | -9/Exiles | Met 8R-AWN 1316 | -9/Exiles | Met EX-HEX 1379 | -9/Exiles | Met EX-DEC 1388 | -9/Exiles | Learned location of Zion (-6) 1516 | -9/Exiles | Discovered exit to Mines (range 14) 1623 | -9/Exiles | Visited The Gauntlet 1828 | -9/Exiles | Met EX-BIN 1966 | -9/Exiles | Aligned with FarCom system 1967 | -9/Exiles | Given EX-Vault access code 2010 | -9/Exiles | Opened EX-Vault 2017 | -9/Exiles | Found Prototype Slashing Weapon 2017 | -9/Exiles | Identified Longsword +1 2032 | -9/Exiles | Found Firepult 2038 | -9/Exiles | Found Deploy-a-Sentry 2042 | -9/Exiles | Found Deploy-a-Sentry 2045 | -9/Exiles | Found Deploy-a-Sentry 2089 | -9/Exiles | Warned to stay clear of 0b10 Research branches 2105 | -9/Exiles | Exiles lab attacked by MAIN.C 2272 | -9/Exiles | Stole three prototypes: Firepult, Longsword +1, Deploy-a-Sentry 2272 | -9/Exiles | Entered Mines 2272 | -8/Mines | Accompanied by 3 allies 2436 | -8/Mines | Discovered new exit (range 4) 2448 | -8/Mines | Entered Materials 2448 | -8/Materials | Accompanied by 3 allies 2448 | -8/Materials | Evolved 2 slots: Utility x1, Weapon x1 2521 | -8/Materials | Lost 3 allies 2772 | -8/Materials | Build established: Assassin 3551 | -8/Materials | Build established: Scavenger-Gladiator 3726 | -8/Materials | Discovered new exit (range 16) 3750 | -8/Materials | Entered Factory 3750 | -7/Factory | Evolved 2 slots: Propulsion x1, Utility x1 3752 | -7/Factory | FarCom data flow suspended 4317 | -7/Factory | Discovered new exit (range 5) 4324 | -7/Factory | Entered Lower Caves 4403 | -7/Lower Caves | Lost 3 parts (1p2n) 4444 | -7/Lower Caves | Encountered a Warlord checkpoint 4479 | -7/Lower Caves | Learned Factory terminal intel 4635 | -7/Lower Caves | Build established: Gladiator 4939 | -7/Lower Caves | Discovered new exit (range 4) 4947 | -7/Lower Caves | Entered another Lower Caves area 4971 | -7/Lower Caves | Discovered new exit (range 12) 4991 | -7/Lower Caves | Entered Factory 4991 | -6/Factory | Evolved 2 slots: Propulsion x1, Utility x1 4992 | -6/Factory | Loaded intel: 24 terminal locations 5127 | -6/Factory | Identified exit to DSF 5127 | -6/Factory | Entered DSF 5180 | -6/DSF | Additional patrols routed to DSF 5300 | -6/DSF | Discovered new exit (range 12) 5325 | -6/DSF | Entered Factory 5325 | -5/Factory | Evolved 2 slots: Utility x2 5953 | -5/Factory | Spotted B-75 Beast 6021 | -5/Factory | Crushed by falling debris 6035 | -5/Factory | Destroyed B-75 Beast 6037 | -5/Factory | Crushed by falling debris 6037 | -5/Factory | System corruption reached 10% 6066 | -5/Factory | DAS Turret deployed 6082 | -5/Factory | Lost 10 parts (1p3n4u2w) 6172 | -5/Factory | Discovered new exit (range 15) 6177 | -5/Factory | Identified exit to Factory 6178 | -5/Factory | Entered another Factory area 6178 | -4/Factory | Evolved 2 slots: Propulsion x1, Utility x1 6281 | -4/Factory | Found Prototype Device 6281 | -4/Factory | Identified Adv. EM Shield 6417 | -4/Factory | Discovered new exit (range 14) 6419 | -4/Factory | Discovered new exit (range 10) 6422 | -4/Factory | Identified exit to Extension 6423 | -4/Factory | Entered Extension 6538 | -4/Extension | Lost 4 parts (1p3n) 6614 | -4/Extension | Lost 10 parts (4n4u2w) 6678 | -4/Extension | Rescued a captive Derelict 6802 | -4/Extension | Spotted B-86 Titan 6810 | -4/Extension | DAS Turret deployed 6876 | -4/Extension | Spotted B-86 Titan 6878 | -4/Extension | DAS Turret deployed 6897 | -4/Extension | Build established: Scavenger-Tank 7076 | -4/Extension | Disrupted transfer network 7172 | -4/Extension | Released all parts (11) 7175 | -4/Extension | Core integrity fell below 50% 7177 | -4/Extension | Discovered new exit (range 1) 7177 | -4/Extension | Entered Research 7177 | -3/Research | Evolved 2 slots: Power x1, Propulsion x1 7202 | -3/Research | Lost 5 parts (3n1u1w) 7228 | -3/Research | Fabricated Enh. Quantum Rifle (x2) 7464 | -3/Research | Lost 3 parts (1u2w) 7474 | -3/Research | Build established: Mutant 7478 | -3/Research | Core integrity fell below 50% 7499 | -3/Research | System corruption reached 10% 7608 | -3/Research | System corruption reached 30% 7643 | -3/Research | Core integrity fell below 20% 7678 | -3/Research | Released all parts (3) 7683 | -3/Research | Destroyed by P-80 Master with Gamma Rifle Last Messages --------------- 07656_ Adv. Remote Datajack destroyed. 07659_ K-01 Serf collects debris. 07662_ P-80 Master resets P-80 Master, system corruption cleaned. 07662_ K-01 Serf collects debris. 07663_ Gamma Rifle destroyed. 07663_ Acquired Mic. Antimatter Reactor. 07666_ K-01 Serf collects debris. 07669_ P-80 Master resets P-80 Master, system corruption cleaned. 07670_ K-01 Serf collects debris. 07671_ System corrupted: Matter fused (-5). 07673_ K-01 Serf collects debris. 07674_ Gamma Rifle destroyed. 07676_ K-01 Serf collects debris. 07678_ Released Mic. Antimatter Reactor. 07678_ Released Imp. Signal Interpreter. 07678_ Released Adv. Target Analyzer. 07680_ P-80 Master resets P-80 Master, system corruption cleaned. Map ----- +----------------------------------------------------+ | ?????????????????????????????????????????????????? | | ?????????????????????????????????????????????????? | | ?????????????????????????????????????????????????? | | ?????????????????????????????????????????????????? | | ?????????????????????????????????????????????????? | | ?????????????????????????????????????????????????? | | ?????????????????????????????????????????????????? | | ?????????????????????????????????????????????????? | | ?????????????????????????????????????????????????? | | ?????????????????????????????????????????????????? | | ?????????????????????????????????????????????????? | | ???????????????????????????????##########????????? | | ?????????????????? ?????????# #????????? | | ????????????????? ?????????# #????????? | | ????????????????? ####?????# !!= #????????? | | ????????????????? ?????# !!= ########## | | ?????????????????? ?????# !! # | | ??????????????????? #????# = # | | ???????????????????? #????# ! # | | ?????????????????????# #????# !%! # | | ?????????????????????# #????# =!= # = | | ?????????????????????# ##########+#### ! * | | ?????????????????????# pp [# !! | | ?????????????????????+ #[=! | | ?????????????????????# +=! = | | ?????????????????????# @ #!! =%! | | ?????????????????????# ###+###### # [! | | ?????????????????????# # ???# # | | ?????????????????????# # [?# #####+#### | | ?????????????????????# # ## | | ?????????????????????+ # """ ## ### | | ?????????????????????# # """ ## #?? | | ?????????????????????# # """ ## #?? | | ?????????????????????# # """ ######### #?? | | ?????????????????????# # ""? #???????# #?? | | ?????????????????????# # ???? #???????# #?? | | ????????????????????? # ?????????????# #?? | | ????????????????????? # ????????????## #?? | | ????????????????????? ##?????????????# #?? | | ????????????????????? ???????????????#T #?? | | ??????????????????????? ??????########### #?? | | ????????????????????????????????# """ # #?? | | ????????????????????????????????# "Y" # ### | | ????????????????????????????????# + | | ????????????????????????????????# # | | ????????????????????????????????# # | | ????????????????????????????????# # | | ????????????????????????????????# ## ##### | | ????????????????????????????????# ## #???? | | ????????????????????????????????############ #???? | +----------------------------------------------------+ Best States ------------- Heat Dissipation 65 Energy Generation 37 Energy Capacity 1100 Matter Stores 600 Matter Capacity 600 Sight Range 16 Robot Scan Range 16 Terrain Scan Range 14 Terrain Scan Density 85 Additional Mass Support 9 Armor Coverage 450 Melee Speed Boost 40 Evasion (%) 63 Melee Accuracy 5 Target Analysis 8 Core Analysis 6 Recoil Reduction 6 Offensive Hacking 14 Defensive Hacking 12 Item Schematics ----------------- None Robot Schematics ------------------ None Fabricated ------------ Enh. Quantum Rifle | x2 | -3/Research | Preloaded Repaired ---------- Nothing Studied --------- None Alien Tech Used ----------------- None Achievements -------------- I Laugh At Your Crits Morally Flexible Sixth Sense Well Done Window Shopping Challenges ------------ None Game ------ Seed IntegratedReactionSabre Manual? 0 Play Time 01:06:12 Cumulative 45.0 hours Start 2025.12.21 @ 17:37:28 End 2025.12.21 @ 18:46:16 Sessions 1 Manual Loads 0 Difficulty Rogue Special Mode None Game No. 40 Rogue 38 Adventurer 2 Explorer 0 Win Type - Total 1 Types 0/0/0/1/0/0/0/0/0/0 Lore% 31 Gallery% 50 Achievement% 43 Wizard Run 0 Options --------- Layout 2 ASCII 0 Keyboard 1 Movement Numpad Keybinds 0 Fullscreen 1 Font 32/SmallcapsGlow Map View 50x49 Zoom Use 0% Tactical HUD 1 Map Filters NONE Filters NONE Steam 0 RUN: 2a9b8f8a-1006-481d-bb82-b91f61d7ccc2